bitfinex/quotes_SOLUSD_20251103
["timestamp","ask_amount","ask_price","bid_price","bid_amount"]
[1762191884719,12.31727064,169.78,169.77,0.1]
[1762191887736,3.91723517,169.78,169.77,0.1]
[1762191888932,24.50923517,169.78,169.77,0.1]
[1762191889133,25.16923517,169.78,169.77,0.1]
[1762191889436,31.05921043,169.78,169.77,0.1]
[1762191889832,32.90927064,169.78,169.77,0.1]
[1762191892436,24.50923517,169.78,169.77,0.1]
[1762191892822,30.39921043,169.78,169.77,0.1]
[1762191894936,32.90927064,169.78,169.77,0.1]
[1762191895823,32.24927064,169.78,169.77,0.1]
[1762191896023,24.50923517,169.78,169.77,0.1]
[1762191896230,30.39921043,169.78,169.77,0.1]
[1762191897035,32.24927064,169.78,169.77,0.1]
[1762191897321,32.90927064,169.78,169.77,0.1]
[1762191897934,25.16923517,169.78,169.77,0.1]
[1762191898247,24.50923517,169.78,169.77,0.1]
[1762191898420,24.50923517,169.78,169.77,6.7103222]
[1762191898421,3.91723517,169.78,169.77,6.7103222]
[1762191898737,3.94700868,169.81,169.77,6.7103222]
[1762191898954,12.26,169.84,169.78,0.72]
[1762191899115,3.94691577,169.83,169.79,5.88962836]
[1762191899321,3.94691577,169.82,169.79,5.88962836]
[1762191899638,3.94691577,169.82,169.77,0.1]
[1762191899639,20.592,169.82,169.77,0.1]
[1762191899840,4.60703991,169.81,169.77,12.36]
[1762191900055,21.252,169.82,169.77,13.08]
[1762191900343,25.19920911,169.81,169.77,18.25022637]
[1762191900523,20.592,169.81,169.77,18.97022637]
[1762191900720,20.592,169.81,169.78,0.72]
[1762191901142,20.592,169.81,169.78,6.60986313]
[1762191901320,0.66,169.81,169.77,12.36]
[1762191901525,43.66,169.81,169.77,13.08]
[1762191901740,43.0,169.81,169.78,0.72]
[1762191903145,9.78882769,169.87,169.79,5.88962836]
[1762191903322,10.77767372,169.91,169.8,50.7]
[1762191903529,3.94884128,169.9,169.83,20.592]
[1762191903724,6.54300823,169.96,169.84,62.24]
[1762191903725,4.89197436,169.96,169.84,62.24]
[1762191903921,3.94748573,169.95,169.86,50.0]
[1762191904120,8.42284073,169.99,169.88,50.0]
[1762191904341,3.94359011,169.98,169.89,12.94]
[1762191904525,3.94359011,169.97,169.91,9.78882769]
[1762191904733,4.89197436,170.02,169.92,50.0]
[1762191905021,17.04342263,170.03,169.92,6.58499269]
[1762191905022,30.02832125,170.01,169.92,6.58499269]
[1762191905243,14.62867419,170.0,169.93,12.94]
[1762191905419,6.57235294,170.0,169.93,0.7]
[1762191905746,4.80342263,169.98,169.94,12.24]
[1762191905923,5.49342263,169.99,169.94,12.24]
[1762191906131,0.69,169.99,169.94,12.94]
[1762191906645,5.49342263,169.99,169.94,12.94]
[1762191907025,11.37636645,169.99,169.94,12.94]
[1762191907968,20.592,169.95,169.89,0.7]
[1762191908247,4.80342263,169.93,169.9,12.24]
[1762191908447,25.39542263,169.91,169.84,0.7]
[1762191908651,4.80342263,169.86,169.8,0.7]
[1762191908857,4.80342263,169.86,169.82,12.24]
[1762191909064,5.88650812,169.88,169.82,12.24]
[1762191909240,4.80342263,169.9,169.83,0.7]
[1762191909427,5.88408355,169.95,169.86,50.0]
[1762191909623,3.93062306,169.94,169.87,12.24]
[1762191909830,3.93062306,169.94,169.88,0.7]
[1762191910245,4.80342263,169.93,169.88,0.7]
[1762191910545,4.80342263,169.93,169.88,12.24]
[1762191910546,25.39542263,169.92,169.88,12.24]
[1762191910727,25.39542263,169.92,169.86,0.7]
[1762191910933,4.80342263,169.9,169.84,0.7]
[1762191911151,26.47720569,169.92,169.86,12.24]
[1762191911448,20.592,169.92,169.86,12.24]
[1762191911630,5.88483929,169.93,169.87,0.7]
[1762191912432,4.80342263,169.9,169.84,0.7]
[1762191912630,25.39542263,169.9,169.86,12.24]
[1762191912826,20.592,169.9,169.86,12.94]
[1762191913030,5.88483929,169.93,169.87,0.7]
[1762191913232,26.47642979,169.94,169.87,6.58659115]
[1762191913538,5.88442979,169.94,169.87,6.58659115]
[1762191913844,6.57442979,169.94,169.87,6.58659115]
[1762191914152,6.57442979,169.94,169.88,0.7]
[1762191914359,13.98976121,169.94,169.88,0.7]
[1762191914957,6.57442979,169.94,169.89,12.24]
[1762191915127,7.41533142,169.93,169.88,0.7]
[1762191915331,7.41533142,169.89,169.79,50.0]
[1762191915643,7.41533142,169.83,169.77,0.8]
[1762191915959,7.41533142,169.83,169.8,12.24]
[1762191916858,7.41533142,169.81,169.79,12.24]
[1762191917157,13.30411493,169.82,169.79,12.24]
[1762191917341,7.41533142,169.81,169.79,12.24]
[1762191917529,7.41533142,169.8,169.77,0.1]
[1762191917736,7.41533142,169.79,169.77,12.34]
[1762191918050,0.69,169.81,169.77,0.1]
[1762191918051,7.41533142,169.78,169.77,0.1]
[1762191918432,28.00733142,169.79,169.77,0.1]
[1762191918633,20.592,169.79,169.77,0.1]
[1762191918848,28.00733142,169.79,169.77,0.1]
[1762191919267,33.89677112,169.8,169.77,0.1]
[1762191919469,26.4814397,169.8,169.77,0.1]
[1762191919648,34.58677112,169.8,169.77,0.1]
[1762191920063,7.41533142,169.79,169.77,0.1]
[1762191920666,27.1714397,169.8,169.77,0.1]
[1762191920667,8.10533142,169.78,169.77,0.1]
[1762191920871,28.00733142,169.8,169.77,0.1]
[1762191921068,20.592,169.8,169.77,0.1]
[1762191921269,43.0,169.81,169.77,6.69017867]
[1762191921449,43.0,169.81,169.78,0.7]
[1762191922167,7.41533142,169.83,169.78,0.7]
[1762191922481,13.30195241,169.88,169.79,12.24]
[1762191922658,7.41533142,169.84,169.79,12.24]
[1762191922852,0.69,169.87,169.79,12.24]
[1762191922853,8.10533142,169.87,169.8,0.7]
[1762191923052,7.41533142,169.86,169.8,0.7]
[1762191923276,5.88662099,169.88,169.81,5.88893469]
[1762191923581,7.41533142,169.86,169.79,12.24]
[1762191923750,7.41533142,169.83,169.79,12.24]
[1762191924147,20.592,169.85,169.79,12.24]
[1762191924148,7.41533142,169.84,169.79,12.24]
[1762191924375,28.00733142,169.84,169.79,12.24]
[1762191924670,21.282,169.84,169.79,12.94]
[1762191924868,20.34533142,169.87,169.8,0.7]
[1762191925069,32.832,169.87,169.8,0.7]
[1762191925253,8.10533142,169.87,169.81,5.88893469]
[1762191925648,18.95834379,169.89,169.81,21.31127141]
[1762191925865,4.61863251,169.88,169.81,21.31127141]
[1762191926052,7.41533142,169.86,169.81,5.88893469]
[1762191926254,0.69,169.87,169.81,6.58893469]
[1762191926774,0.69,169.87,169.81,5.88893469]
[1762191927570,6.57701036,169.87,169.8,20.61248526]
[1762191927755,0.69,169.87,169.8,71.29248526]
[1762191927955,0.69,169.87,169.81,0.68]
[1762191928873,13.99220219,169.87,169.81,0.68]
[1762191929072,6.57687077,169.87,169.81,0.68]
[1762191929372,13.96264675,169.86,169.79,18.80947252]
[1762191929675,8.07533142,169.86,169.79,33.53354343]
[1762191929870,0.66,169.86,169.79,33.53354343]
[1762191930072,0.66,169.86,169.8,0.68]
[1762191930269,7.41533142,169.84,169.77,0.1]
[1762191930575,7.41533142,169.82,169.77,0.1]
[1762191930777,43.0,169.83,169.77,50.78]
[1762191931187,43.0,169.83,169.78,0.68]
[1762191931352,43.0,169.83,169.8,5.8892815]
[1762191932467,0.66,169.82,169.77,0.1]
[1762191932659,50.41533142,169.81,169.77,12.34]
[1762191932863,43.0,169.81,169.77,18.23029246]
[1762191933064,43.0,169.81,169.78,0.69]
[1762191933394,0.66,169.8,169.77,12.34]
[1762191933559,8.07533142,169.8,169.77,12.34]
[1762191933969,8.07533142,169.8,169.77,0.1]
[1762191933970,7.41533142,169.78,169.77,0.1]
[1762191934200,21.28320686,169.78,169.77,0.1]
[1762191934365,21.94320686,169.78,169.77,0.1]
[1762191935498,48.42518212,169.78,169.77,0.1]
[1762191936684,27.83318212,169.78,169.77,0.1]
[1762191938270,17.90219286,169.78,169.77,0.1]
[1762191939089,20.592,169.78,169.77,0.1]
[1762191939479,8.07533142,169.78,169.77,0.1]
[1762191939863,28.66733142,169.78,169.77,0.1]
[1762191940192,34.55730668,169.78,169.77,0.1]
[1762191940390,38.49218153,169.78,169.77,0.1]
[1762191940594,38.49218153,169.78,169.76,0.2]
[1762191940595,52.93098926,169.77,169.76,0.2]
[1762191940773,64.94119553,169.77,169.76,0.2]
[1762191941981,70.83151773,169.77,169.76,0.2]
[1762191944108,13.72370254,169.77,169.76,0.2]
[1762191944320,0.66,169.79,169.76,0.2]
[1762191944321,7.41533142,169.78,169.76,0.2]
[1762191944779,8.07533142,169.78,169.76,0.2]
[1762191944981,20.592,169.77,169.76,0.2]
[1762191945202,43.0,169.79,169.76,0.89]
[1762191945686,43.0,169.79,169.76,6.7805194]
[1762191945888,43.0,169.83,169.77,0.69]
[1762191946210,43.0,169.83,169.78,5.88997526]
[1762191946509,5.88765255,169.85,169.79,0.69]
[1762191946893,26.47965255,169.85,169.79,0.69]
[1762191947706,13.3019213,169.88,169.79,21.30343555]
[1762191947913,13.30145838,169.9,169.8,50.0]
[1762191948208,20.592,169.87,169.81,0.69]
[1762191948398,35.98971499,169.91,169.81,0.69]
[1762191948599,7.41533142,169.89,169.81,0.69]
[1762191949476,27.1387855,169.88,169.81,6.57863921]
[1762191949992,27.1387855,169.88,169.82,0.69]
[1762191950193,27.1387855,169.88,169.8,5.88919306]
[1762191950194,8.07533142,169.87,169.8,0.69]
[1762191950379,20.592,169.88,169.79,32.85369095]
[1762191950701,20.592,169.88,169.8,0.14216157]
[1762191950900,0.66,169.9,169.82,50.0]
[1762191951097,20.592,169.89,169.82,50.0]
[1762191951602,20.592,169.89,169.83,20.60884413]
[1762191951798,20.592,169.89,169.84,12.24]
[1762191952200,34.55353736,169.89,169.84,12.24]
[1762191952387,27.13819083,169.89,169.84,12.57]
[1762191952588,7.41533142,169.88,169.84,12.24]
[1762191952802,0.66,169.87,169.82,0.33]
[1762191953022,8.07533142,169.87,169.82,12.24]
[1762191953200,0.66,169.87,169.82,12.24]
[1762191953408,0.66,169.87,169.82,12.57]
[1762191953785,0.66,169.87,169.83,5.88824118]
[1762191954700,0.66,169.87,169.82,18.45850783]
[1762191954904,7.41533142,169.86,169.82,12.24]
[1762191955113,7.41533142,169.84,169.77,0.33]
[1762191955282,7.41533142,169.83,169.78,12.24]
[1762191955690,7.41533142,169.83,169.78,18.12997526]
[1762191955889,7.41533142,169.83,169.79,0.33]
[1762191956089,7.41533142,169.84,169.79,0.33]
[1762191956292,8.07533142,169.83,169.78,12.24]
[1762191956507,7.41533142,169.82,169.78,12.24]
[1762191957019,43.0,169.81,169.78,18.45996467]
[1762191958196,43.0,169.81,169.78,12.57]
[1762191958595,43.0,169.81,169.78,12.24]
[1762191959111,43.0,169.81,169.78,18.45991094]
[1762191959420,43.0,169.81,169.78,18.12991094]
[1762191959891,43.0,169.81,169.77,5.8903222]
[1762191960091,43.0,169.81,169.77,18.4603222]
[1762191960531,43.0,169.81,169.78,0.33]
[1762191960804,43.0,169.81,169.77,32.8561277]
[1762191961017,7.41533142,169.79,169.76,0.2]
[1762191961195,0.66,169.8,169.76,0.2]
[1762191961196,7.41533142,169.78,169.76,0.2]
[1762191961515,8.07533142,169.79,169.76,0.2]
[1762191961721,28.00733142,169.78,169.76,0.2]
[1762191961892,17.25112307,169.77,169.76,0.2]
[1762191962211,3.94546945,169.77,169.76,0.2]
[1762191962397,20.592,169.78,169.76,0.2]
[1762191962593,7.41533142,169.77,169.76,0.2]
[1762191962808,11.36045697,169.77,169.76,0.2]
[1762191963014,3.94512555,169.77,169.76,0.2]
[1762191963411,20.592,169.78,169.76,0.2]
[1762191963616,21.262,169.78,169.76,0.2]
[1762191964113,27.15200531,169.78,169.76,0.2]
[1762191964303,8.08533142,169.77,169.76,0.2]
[1762191964709,12.03012205,169.77,169.76,0.2]
[1762191965009,63.592,169.81,169.76,6.09066918]
[1762191965211,4.61438958,169.8,169.76,6.09066918]
[1762191965405,0.67,169.8,169.76,6.09066918]
[1762191965604,71.00733142,169.81,169.76,0.2]
[1762191965605,7.41533142,169.79,169.76,0.2]
[1762191965807,8.08533142,169.79,169.76,0.2]
[1762191966120,0.67,169.78,169.76,0.2]
[1762191966704,71.00733142,169.81,169.76,6.42051382]
[1762191966902,64.262,169.81,169.76,6.09051382]
[1762191967100,0.67,169.8,169.76,0.2]
[1762191967391,0.67,169.8,169.76,6.09063934]
[1762191968194,43.0,169.79,169.77,0.33]
[1762191969207,43.0,169.79,169.76,6.09063934]
[1762191969719,43.0,169.79,169.76,6.42063934]
[1762191969925,43.0,169.79,169.76,0.2]
[1762191970105,43.0,169.79,169.76,12.44]
[1762191970715,0.67,169.78,169.76,12.44]
[1762191971100,43.0,169.79,169.76,12.44]
[1762191971308,43.67,169.78,169.76,12.44]
[1762191971603,51.08533142,169.78,169.76,0.2]
[1762191972095,7.41533142,169.77,169.76,0.2]
[1762191972425,8.08533142,169.77,169.76,0.2]
[1762191972730,20.592,169.78,169.76,0.2]
[1762191973335,0.67,169.77,169.76,0.2]
[1762191973497,20.592,169.78,169.76,0.2]
[1762191973698,13.97499556,169.79,169.76,0.2]
[1762191973915,0.67,169.79,169.76,0.2]
[1762191975004,6.55965402,169.79,169.76,0.2]
[1762191975207,11.36241398,169.78,169.76,0.2]
[1762191975424,0.67,169.78,169.76,0.2]
[1762191975601,20.592,169.8,169.76,0.2]
[1762191975802,20.592,169.79,169.76,6.09062641]
[1762191975999,21.262,169.79,169.76,0.2]
[1762191976430,4.81545951,169.79,169.76,0.2]
[1762191976603,0.67,169.78,169.76,0.2]
[1762191977108,4.89197436,169.91,169.8,0.14216157]
[1762191977308,3.94570704,169.9,169.84,50.0]
[1762191977546,11.44614653,169.95,169.86,50.0]
[1762191977708,20.592,169.92,169.87,12.26]
[1762191977904,10.69963168,169.95,169.87,12.26]
[1762191978219,21.262,169.92,169.87,12.26]
[1762191978523,12.26,169.96,169.87,12.26]
[1762191978726,3.94150576,169.95,169.88,0.33]
[1762191978909,0.67,169.96,169.88,0.33]
[1762191978910,0.67,169.96,169.88,10.11882769]
[1762191979104,0.67,169.95,169.89,5.88616163]
[1762191979417,0.67,169.95,169.88,14.71573166]
[1762191979418,3.93880664,169.94,169.88,12.26]
[1762191979608,4.81545951,169.92,169.85,5.88732436]
[1762191979810,26.07745951,169.93,169.86,12.26]
[1762191980006,0.67,169.92,169.86,12.26]
[1762191981108,0.67,169.92,169.86,18.14708354]
[1762191981730,0.67,169.92,169.86,32.8650866]
[1762191982026,0.67,169.92,169.86,18.47708354]
[1762191982826,6.55525995,169.92,169.86,18.47708354]
[1762191983044,6.55525995,169.92,169.86,18.14708354]
[1762191983725,5.88525995,169.92,169.86,5.88708354]
[1762191984030,5.48545951,169.91,169.86,12.24]
[1762191984416,0.67,169.9,169.86,12.24]
[1762191985018,0.67,169.9,169.86,18.12712928]
[1762191986428,6.55583738,169.9,169.86,18.12712928]
[1762191986626,6.55583738,169.9,169.86,12.24]
[1762191987817,0.67,169.9,169.86,12.24]
[1762191988024,0.67,169.9,169.86,18.12716442]
[1762191989734,0.71,169.9,169.86,18.12716442]
[1762191990449,4.81545951,169.89,169.81,0.14216157]
[1762191990754,4.81545951,169.86,169.81,12.22]
[1762191991050,20.592,169.87,169.81,12.55]
[1762191991522,26.11745951,169.87,169.81,0.33]
[1762191991837,0.71,169.86,169.82,18.10844609]
[1762191992036,20.592,169.83,169.77,26.52]
[1762191992340,0.71,169.82,169.78,12.22]
[1762191992544,5.52545951,169.82,169.78,12.22]
[1762191992739,0.71,169.82,169.78,12.22]
[1762191992918,4.81545951,169.82,169.78,12.22]
[1762191993244,9.40653438,169.81,169.76,12.42]
[1762191993431,5.46545951,169.81,169.76,12.42]
[1762191993738,4.81545951,169.79,169.76,0.2]
[1762191993926,0.65,169.78,169.76,0.2]
[1762191994832,4.81545951,169.8,169.76,0.2]
[1762191995035,0.65,169.79,169.76,0.2]
[1762191995544,20.592,169.78,169.76,0.2]
[1762191995932,21.242,169.78,169.76,0.2]
[1762191996131,0.65,169.78,169.76,0.2]
[1762191997233,6.54008019,169.78,169.76,0.2]
[1762191997849,20.592,169.79,169.76,0.2]
[1762191998027,0.65,169.78,169.76,0.2]
[1762191998347,70.13098011,169.81,169.76,6.09060557]
[1762191998546,0.65,169.8,169.76,6.09060557]
[1762191999638,43.0,169.81,169.77,0.33]
[1762192000142,43.0,169.81,169.77,5.88999248]
[1762192000333,0.65,169.8,169.76,6.09061305]
[1762192000752,43.0,169.81,169.76,6.09061305]
[1762192001053,43.0,169.81,169.76,21.147286]
[1762192001257,43.65,169.81,169.76,21.147286]
[1762192002159,43.65,169.81,169.76,20.817286]
[1762192002339,43.0,169.81,169.76,6.09061305]
[1762192002658,0.65,169.8,169.76,6.09061305]
[1762192002829,43.65,169.81,169.76,6.09061305]
[1762192003146,0.65,169.8,169.76,6.09061305]
[1762192003651,43.0,169.79,169.76,6.09061305]
[1762192003963,43.0,169.79,169.76,6.42061305]
[1762192004258,43.0,169.79,169.78,5.88997526]
[1762192004447,43.0,169.79,169.78,18.10997526]
[1762192004958,43.0,169.82,169.78,18.10997526]
[1762192005135,43.65,169.82,169.78,18.10997526]
[1762192006231,0.65,169.81,169.78,12.22]
[1762192006756,0.65,169.81,169.77,5.89024121]
[1762192006933,5.46545951,169.81,169.76,12.42]
[1762192007256,0.65,169.81,169.76,12.42]
[1762192007459,0.65,169.8,169.76,12.42]
[1762192007655,0.65,169.8,169.76,18.31060462]
[1762192008544,43.65,169.82,169.76,18.64060462]
[1762192008739,0.65,169.81,169.76,33.03727757]
[1762192009450,43.0,169.8,169.76,33.03727757]
[1762192009841,43.65,169.8,169.76,33.03727757]
[1762192010245,43.65,169.8,169.76,12.42]
[1762192010560,4.81545951,169.78,169.76,0.2]
[1762192010869,0.65,169.77,169.76,0.2]
[1762192011680,43.0,169.79,169.76,0.2]
[1762192011873,0.65,169.78,169.76,0.2]
[1762192012380,10.70578171,169.77,169.76,0.2]
[1762192012543,43.0,169.79,169.76,18.31064399]
[1762192012744,43.0,169.79,169.76,83.36731694]
[1762192012942,43.0,169.79,169.76,83.03731694]
[1762192013243,20.592,169.85,169.76,83.03731694]
[1762192013244,4.92777756,169.9,169.8,50.0]
[1762192013579,16.81076318,169.89,169.81,12.22]
[1762192013774,0.65,169.89,169.81,12.55]
[1762192013950,0.65,169.88,169.81,12.55]
[1762192014468,3.93979542,169.89,169.82,56.21858791]
[1762192014676,0.65,169.9,169.82,56.21858791]
[1762192014871,3.93973023,169.89,169.82,56.21858791]
[1762192015171,0.65,169.9,169.82,70.9400577]
[1762192015343,4.58956885,169.89,169.82,70.9400577]
[1762192015666,0.65,169.89,169.82,70.9400577]
[1762192016254,0.65,169.89,169.82,5.88858791]
[1762192016255,20.592,169.88,169.82,5.88858791]
[1762192016564,20.592,169.88,169.83,12.22]
[1762192016768,21.242,169.88,169.81,5.88893469]
[1762192016944,21.242,169.88,169.84,12.22]
[1762192017143,0.65,169.88,169.84,12.22]
[1762192018276,33.462,169.91,169.84,12.55]
[1762192018445,33.462,169.91,169.85,20.60641742]
[1762192018446,0.65,169.9,169.85,20.60641742]
[1762192019359,5.46545951,169.9,169.85,5.88754783]
[1762192019542,0.65,169.9,169.85,5.88754783]
[1762192019747,0.65,169.89,169.85,5.88754783]
[1762192019945,0.65,169.94,169.86,0.33]
[1762192020149,0.65,169.94,169.87,12.22]
[1762192020345,0.65,169.94,169.88,20.60277842]
[1762192021140,41.84353434,169.99,169.88,20.60277842]
[1762192021141,0.2,169.99,169.89,0.33]
[1762192021346,0.2,169.99,169.94,50.0]
[1762192021568,0.2,169.99,169.96,50.0]
[1762192021949,0.2,169.99,169.97,0.33]
[1762192022155,0.2,170.04,169.97,0.33]
[1762192022156,0.2,170.04,169.99,9.78882769]
[1762192022353,0.2,170.04,170.03,5.88131506]
[1762192022554,0.2,170.04,170.03,18.10131506]
[1762192022868,0.2,170.06,170.04,50.0]
[1762192023057,0.2,170.06,170.04,50.33]
[1762192023254,1e-08,170.06,170.05,10.26098926]
[1762192023646,0.2,170.09,170.07,50.0]
[1762192023848,0.2,170.09,170.08,12.57]
[1762192024465,0.2,170.09,170.08,12.24]
[1762192024853,0.2,170.09,170.05,36.40360394]
[1762192025054,0.66,170.08,170.01,50.0]
[1762192025356,4.81545951,170.07,170.02,12.24]
[1762192025556,4.81545951,170.07,170.03,12.24]
[1762192025870,26.67132437,170.09,170.0,5.88231483]
[1762192025871,20.792,170.09,170.04,12.24]
[1762192026172,0.66,170.07,170.04,12.24]
[1762192026357,20.792,170.09,170.05,5.88062334]
[1762192026747,20.792,170.09,170.04,12.24]
[1762192026748,0.66,170.08,170.04,12.24]
[1762192026949,20.792,170.09,170.04,18.12094196]
[1762192027152,20.792,170.09,170.04,18.45094196]
[1762192027377,0.66,170.08,170.04,12.24]
[1762192028267,0.66,170.08,169.99,50.0]
[1762192028268,4.81545951,170.06,169.99,5.88235972]
[1762192028572,10.69642856,170.05,170.0,12.22]
[1762192028947,0.66,170.07,170.01,12.22]
[1762192029755,11.35542794,170.07,170.01,12.22]
[1762192029949,4.81545951,170.06,170.01,12.22]
[1762192030254,0.66,170.06,170.01,12.22]
[1762192030450,6.54070271,170.05,170.01,12.22]
[1762192030771,20.592,170.02,169.97,26.5]
[1762192031066,20.592,170.02,169.96,12.22]
[1762192031252,4.81545951,169.99,169.96,12.22]
[1762192031447,4.81545951,169.98,169.96,12.22]
[1762192031653,4.81545951,169.99,169.96,12.22]
[1762192032179,20.592,170.02,169.96,12.55]
[1762192032385,21.252,170.04,169.97,10.11882769]
[1762192032566,21.252,170.04,169.98,5.88304506]
[1762192032765,21.252,170.04,169.99,12.24]
[1762192032958,0.66,170.06,169.99,12.24]
[1762192033472,5.47545951,170.06,169.99,12.24]
[1762192033676,4.81545951,170.05,169.99,12.24]
[1762192033872,5.47545951,170.05,169.99,12.24]
[1762192034067,0.66,170.05,169.99,12.24]
[1762192034271,0.66,170.04,169.99,12.24]
[1762192034577,5.88051749,170.06,170.0,5.88235294]
[1762192034780,0.86,170.09,170.0,20.91823529]
[1762192034960,21.252,170.08,170.0,20.58823529]
[1762192035165,21.252,170.08,170.01,0.33]
[1762192035463,21.252,170.08,170.02,12.24]
[1762192035664,0.2,170.09,170.03,59.93098926]
[1762192035869,0.2,170.09,170.03,9.93098926]
[1762192036276,43.86,170.09,170.02,12.57]
[1762192036455,43.86,170.09,170.03,5.88131506]
[1762192037264,49.73924739,170.09,170.03,5.88131506]
[1762192037463,0.66,170.08,170.03,5.88131506]
[1762192037668,0.66,170.08,170.04,12.24]
[1762192038154,43.2,170.09,170.04,12.24]
[1762192038359,43.2,170.09,170.04,12.57]
[1762192038575,0.2,170.09,170.06,5.88027754]
[1762192038775,0.2,170.09,170.07,12.24]
[1762192039457,0.86,170.09,170.07,12.24]
[1762192039652,0.2,170.09,170.08,0.33]
[1762192039854,0.2,170.12,170.1,50.0]
[1762192040058,0.2,170.12,170.11,12.22]
[1762192040271,0.2,170.12,170.11,22.15098926]
[1762192040485,0.1,170.19,170.13,20.57250337]
[1762192040666,0.1,170.19,170.15,9.93098926]
[1762192040887,0.1,170.19,170.15,59.93098926]
[1762192041067,0.1,170.19,170.16,0.13]
[1762192041269,0.1,170.19,170.18,9.93098926]
[1762192041967,0.1,170.19,170.17,12.26]
[1762192042270,0.1,170.19,170.18,12.26]
[1762192042471,0.1,170.19,170.16,15.66536242]
[1762192042769,0.76,170.19,170.17,12.26]
[1762192042983,0.76,170.19,170.14,5.87739051]
[1762192043283,0.76,170.19,170.15,12.26]
[1762192043482,0.76,170.19,170.16,12.26]
[1762192043684,0.76,170.19,170.13,5.8778581]
[1762192043988,7.39979941,170.16,170.13,12.26]
[1762192044197,6.63579342,170.19,170.13,12.26]
[1762192044198,7.39979941,170.18,170.13,12.26]
[1762192044494,0.66,170.18,170.13,12.26]
[1762192044991,0.66,170.17,170.13,12.26]
[1762192045366,8.05979941,170.17,170.09,59.78882769]
[1762192045591,7.39979941,170.16,170.1,12.26]
[1762192045787,0.66,170.16,170.1,12.26]
[1762192046291,0.66,170.16,170.11,12.26]
[1762192046585,0.66,170.16,170.12,5.87820362]
[1762192046792,0.76,170.19,170.12,5.87820362]
[1762192046993,0.1,170.19,170.13,9.93098926]
[1762192047183,0.1,170.19,170.14,12.28]
[1762192047591,0.76,170.19,170.14,12.28]
[1762192047888,0.76,170.19,170.14,62.28]
[1762192048102,0.76,170.19,170.14,12.28]
[1762192048596,0.1,170.19,170.15,9.93098926]
[1762192048892,0.1,170.19,170.16,5.87682181]
[1762192049101,0.1,170.19,170.17,12.26]
[1762192049398,8.05979941,170.18,170.14,12.26]
[1762192049568,0.66,170.18,170.14,12.26]
[1762192049898,7.49979941,170.19,170.15,60.06098926]
[1762192049899,0.1,170.19,170.15,60.06098926]
[1762192050068,0.1,170.19,170.18,9.93098926]
[1762192050396,0.1,170.19,170.18,22.21098926]
[1762192050774,0.1,170.19,170.18,28.08712041]
[1762192053376,0.1,170.19,170.18,28.21712041]
[1762192053377,1e-08,170.19,170.18,28.21712041]
[1762192053567,1e-08,170.19,170.18,48.80912041]
[1762192054170,1e-08,170.19,170.18,48.67912041]
[1762192054377,1e-08,170.19,170.18,38.72813115]
[1762192054581,1e-08,170.19,170.18,18.13613115]
[1762192055273,1e-08,170.19,170.18,78.06712041]
[1762192055677,1e-08,170.19,170.18,18.13613115]
[1762192055878,1e-08,170.19,170.18,98.78912041]